bitfinex/quotes_ETHUSD_20250404
["timestamp","ask_amount","ask_price","bid_price","bid_amount"]
[1743733311907,23.30699604,1800.2,1800.1,0.05]
[1743733313318,24.07299604,1800.2,1800.1,0.05]
[1743733314017,17.81899604,1800.2,1800.1,0.05]
[1743733314213,0.41075793,1800.3,1800.1,5.6052]
[1743733314414,12.261,1800.5,1800.3,5.55451]
[1743733314616,12.261,1800.5,1800.4,0.2076254]
[1743733314919,6.251,1800.5,1800.4,0.2076254]
[1743733315812,6.251,1800.5,1800.2,11.86974]
[1743733316016,6.251,1800.5,1800.2,11.86967]
[1743733316185,11.80501,1800.5,1800.3,0.20745732]
[1743733316817,6.251,1800.5,1800.3,0.20745732]
[1743733317581,6.251,1800.5,1800.3,5.76203732]
[1743733317880,12.985607,1800.5,1800.3,0.20745732]
[1743733318082,5.55432,1800.4,1800.3,0.20745732]
[1743733318279,5.55489,1800.3,1800.1,0.05]
[1743733318507,5.55493,1800.2,1800.1,0.05]
[1743733319794,5.55493,1800.2,1800.1,0.25641763]
[1743733320000,6.96873994,1800.2,1800.1,0.25641763]
[1743733320407,5.55476,1800.3,1800.1,0.25641763]
[1743733320817,3.0,1800.3,1800.1,1.01641763]
[1743733320984,5.55493,1800.2,1800.1,1.01641763]
[1743733322816,8.55464,1800.3,1800.1,1.01641763]
[1743733323183,11.56438,1800.4,1800.1,1.01641763]
[1743733323431,6.01,1800.4,1800.1,6.57153763]
[1743733323577,11.56436,1800.4,1800.1,6.57153763]
[1743733323777,11.56436,1800.4,1800.1,6.57165763]
[1743733324805,17.11883,1800.4,1800.1,1.01641763]
[1743733325119,5.55493,1800.2,1800.1,1.01641763]
[1743733325730,8.4649927,1800.4,1800.1,1.01641763]
[1743733325731,14.0193827,1800.4,1800.1,1.01641763]
[1743733325878,6.01,1800.4,1800.2,5.55492]
[1743733326077,12.256,1800.4,1800.3,0.76]
[1743733326325,12.256,1800.4,1800.3,0.96566621]
[1743733326523,17.81032,1800.4,1800.3,0.96566621]
[1743733327021,3.0,1800.6,1800.3,6.52028621]
[1743733327221,6.245,1800.4,1800.3,6.52028621]
[1743733330811,11.79652,1800.7,1800.3,6.52022621]
[1743733331021,6.243,1800.7,1800.6,6.33375]
[1743733331210,6.243,1800.7,1800.6,0.9839039]
[1743733332744,11.79639,1800.7,1800.6,0.9839039]
[1743733333112,11.79639,1800.7,1800.6,0.2038039]
[1743733333313,5.55392,1800.6,1800.4,0.7801]
[1743733333748,5.55392,1800.6,1800.5,0.20369991]
[1743733334241,11.10784,1800.6,1800.5,0.20369991]
[1743733334413,5.55392,1800.6,1800.4,0.7801]
[1743733334608,5.55392,1800.6,1800.5,0.20369991]
[1743733334809,5.55392,1800.6,1800.4,0.7801]
[1743733335010,5.55392,1800.6,1800.5,0.20369991]
[1743733335210,14.20950087,1800.7,1800.4,0.7801]
[1743733335410,14.20950087,1800.7,1800.5,0.20369991]
[1743733336358,17.35,1800.7,1800.5,0.20369991]
[1743733336557,5.5537,1800.6,1800.5,0.20369991]
[1743733337455,11.53005875,1800.8,1800.5,0.20369991]
[1743733337656,6.24,1800.7,1800.5,0.20369991]
[1743733338150,11.79344,1800.7,1800.5,0.20369991]
[1743733340271,17.34707,1800.7,1800.5,0.20369991]
[1743733340568,11.79344,1800.7,1800.5,0.20369991]
[1743733341063,6.24,1800.7,1800.5,11.31160991]
[1743733341236,6.24,1800.7,1800.5,5.75759991]
[1743733342968,6.24,1800.7,1800.5,0.20369991]
[1743733343172,5.5537,1800.6,1800.5,0.20369991]
[1743733343370,11.58197944,1800.6,1800.5,0.20369991]
[1743733343546,5.55493,1800.2,1800.1,0.05]
[1743733343754,11.79093,1800.2,1800.1,0.05]
[1743733343957,11.79093,1800.2,1800.1,0.23727067]
[1743733344188,12.970023,1800.2,1800.1,0.23727067]
[1743733344493,12.970023,1800.2,1800.1,0.05]
[1743733345196,12.970023,1800.2,1800.1,0.23727067]
[1743733346392,13.38098076,1800.2,1800.1,0.23727067]
[1743733347063,7.82605076,1800.2,1800.1,0.23727067]
[1743733347273,6.64695776,1800.2,1800.1,0.23727067]
[1743733347698,12.20188776,1800.2,1800.1,0.23727067]
[1743733349107,6.236,1800.2,1800.1,0.23727067]
[1743733349310,5.55414,1800.5,1800.1,6.56181067]
[1743733349463,6.235,1800.4,1800.1,6.56167067]
[1743733349811,7.413914,1800.4,1800.1,1.00657067]
[1743733350010,11.10972,1800.3,1800.1,1.00657067]
[1743733350333,5.55493,1800.2,1800.1,0.23727067]
[1743733351306,11.10955,1800.3,1800.1,0.23727067]
[1743733351494,1.110955,1800.2,1800.1,0.23727067]
[1743733351902,5.55476,1800.3,1800.1,0.23727067]
[1743733352220,5.97485606,1800.5,1800.2,0.7693]
[1743733352416,6.233,1800.4,1800.2,6.32403]
[1743733352719,6.233,1800.4,1800.3,5.74235088]
[1743733353094,6.233,1800.5,1800.4,5.55421]
[1743733353503,6.233,1800.5,1800.4,11.2956159]
[1743733353910,6.233,1800.5,1800.4,5.7414059]
[1743733354432,6.232,1800.6,1800.4,5.7414059]
[1743733355002,6.232,1800.6,1800.4,11.2955759]
[1743733355199,6.232,1800.6,1800.4,5.7413659]
[1743733356336,7.410548,1800.6,1800.4,0.1871959]
[1743733356700,6.231,1800.6,1800.5,5.55401]
[1743733357018,6.231,1800.6,1800.5,5.73996962]
[1743733357414,6.231,1800.6,1800.5,6.50926962]
[1743733358228,6.231,1800.6,1800.5,0.95525962]
[1743733358427,6.231,1800.6,1800.5,6.50926962]
[1743733359425,6.231,1800.6,1800.5,0.95525962]
[1743733360004,6.231,1800.6,1800.5,6.50926962]
[1743733360337,6.231,1800.6,1800.5,5.73996962]
[1743733360646,6.231,1800.6,1800.5,0.18595962]
[1743733360936,6.231,1800.6,1800.5,5.73996962]
[1743733362025,6.231,1800.6,1800.5,0.18595962]
[1743733363358,6.231,1800.6,1800.5,5.73996962]
[1743733364951,6.231,1800.6,1800.5,0.18595962]
[1743733365457,6.231,1800.6,1800.5,5.73996962]
[1743733367560,5.96010706,1801.0,1800.6,6.30551]
[1743733367766,5.55218,1801.1,1800.6,0.7521]
[1743733367918,48.9089,1801.2,1800.9,5.55277]
[1743733368119,6.225,1801.1,1800.9,6.30487]
[1743733368318,6.225,1801.1,1801.0,0.18363644]
[1743733368548,6.225,1801.1,1801.0,5.73610644]
[1743733369428,11.56127,1801.4,1801.0,5.73610644]
[1743733369429,6.224,1801.3,1801.2,5.55174]
[1743733369628,6.224,1801.3,1801.2,0.18224862]
[1743733369923,6.224,1801.3,1801.1,11.10403]
[1743733370366,6.224,1801.3,1801.2,0.18224862]
[1743733370533,11.77554,1801.3,1801.0,5.55232]
[1743733370729,11.77554,1801.3,1801.0,11.10463]
[1743733371055,11.77554,1801.3,1801.1,0.18259199]
[1743733371873,6.224,1801.3,1801.1,0.18259199]
[1743733372831,11.77558,1801.3,1801.1,0.18259199]
[1743733373170,17.32731,1801.3,1801.1,0.18259199]
[1743733373473,11.77558,1801.3,1800.9,11.85744]
[1743733373655,11.77558,1801.3,1801.0,5.73539539]
[1743733373861,11.77558,1801.3,1801.0,11.28763539]
[1743733373862,6.224,1801.3,1801.0,11.28763539]
[1743733374278,6.224,1801.3,1801.1,5.55215]
[1743733374452,6.224,1801.3,1801.2,0.18224862]
[1743733375949,5.55127,1801.4,1801.2,0.18224862]
[1743733376150,6.22,1801.5,1801.3,5.55138]
[1743733376395,6.22,1801.5,1801.4,5.55123]
[1743733376650,6.22,1801.5,1801.4,5.73279201]
[1743733377767,6.22,1801.5,1801.4,0.18156201]
[1743733378267,6.22,1801.5,1801.4,5.73279201]
[1743733378588,6.219,1801.9,1801.7,5.55021]
[1743733378748,6.219,1801.9,1801.7,5.55015]
[1743733379082,6.219,1801.9,1801.8,5.72588886]
[1743733379286,6.219,1801.9,1801.8,6.47598886]
[1743733379584,5.54797,1802.5,1801.8,9.5042183]
[1743733379786,5.569167,1802.5,1802.1,0.7501]
[1743733380081,5.569167,1802.5,1801.9,0.55]
[1743733380082,6.267,1802.9,1802.5,0.7501]
[1743733380399,0.05,1802.9,1802.8,5.54692]
[1743733380748,0.05,1802.9,1802.8,5.71772426]
[1743733381703,0.05,1802.9,1802.8,7.64671198]
[1743733381997,0.05,1802.9,1802.8,7.59125012]
[1743733382166,0.8027,1803.7,1803.4,5.54493]
[1743733382363,6.215,1803.6,1803.4,5.54488]
[1743733382566,6.215,1803.6,1803.5,0.15829172]
[1743733382774,0.005,1803.8,1803.5,0.15829172]
[1743733383018,0.005,1803.8,1803.7,5.54415]
[1743733383312,0.005,1803.8,1803.7,5.70108961]
[1743733383666,0.005,1803.8,1803.7,6.45118961]
[1743733384303,0.005,1803.8,1803.7,0.15693961]
[1743733384495,0.005,1803.8,1803.4,0.7501]
[1743733384496,5.54885,1803.8,1803.4,0.7501]
[1743733384703,11.75985,1803.8,1803.7,0.14071882]
[1743733384904,5.5443,1803.7,1803.4,0.7501]
[1743733385109,5.54447,1803.6,1803.2,6.29579]
[1743733385267,5.54447,1803.6,1803.3,5.54538]
[1743733385473,5.5443,1803.7,1803.3,5.54538]
[1743733385708,11.0887,1803.7,1803.3,5.54538]
[1743733385874,5.5443,1803.7,1803.3,5.54538]
[1743733386320,5.5443,1803.7,1803.3,6.729478]
[1743733386812,5.54458,1803.6,1803.2,0.7501]
[1743733386973,5.54489,1803.5,1803.1,5.54588]
[1743733387175,5.54539,1803.3,1803.0,5.54603]
[1743733387397,11.75411,1803.4,1803.0,11.09216]
[1743733387674,11.75411,1803.4,1803.2,5.54545]
[1743733387675,6.209,1803.4,1803.2,5.54545]
[1743733387888,6.209,1803.4,1803.2,11.09096]
[1743733388090,6.209,1803.4,1803.2,5.54545]
[1743733388290,6.209,1803.4,1803.1,1.109216]
[1743733388485,6.209,1803.4,1803.1,5.54585]
[1743733389204,6.209,1803.4,1803.1,5.54581]
[1743733389637,6.209,1803.4,1803.2,5.54556]
[1743733389995,6.209,1803.4,1803.1,5.54581]
[1743733390192,6.209,1803.4,1803.0,5.54627]
[1743733390193,7.0117,1803.4,1802.9,0.7501]
[1743733390397,5.54619,1803.1,1802.7,6.29718]
[1743733390599,5.54646,1803.0,1802.7,0.7501]
[1743733390911,5.54646,1803.0,1802.6,5.54753]
[1743733390912,11.75346,1803.0,1802.6,5.54753]
[1743733391094,6.207,1803.0,1802.5,0.7501]
[1743733391298,6.207,1803.0,1802.7,5.54697]
[1743733391498,6.207,1803.0,1802.8,5.5468]
[1743733391698,6.207,1803.0,1802.7,11.6542741]
[1743733392537,11.75341,1803.0,1802.7,0.5602441]
[1743733392837,11.09345,1802.9,1802.5,6.29779]
[1743733393002,5.54663,1802.9,1802.5,11.84548]
[1743733393531,5.54663,1802.9,1802.6,5.5475]
[1743733393741,11.75334,1803.0,1802.6,5.60296982]
[1743733393935,17.29995,1803.0,1802.6,5.60296982]
[1743733394120,6.207,1803.0,1802.6,6.7929158]
[1743733394325,5.54602,1803.1,1802.7,5.54706]
[1743733394642,6.205,1803.1,1803.0,5.54631]
[1743733394847,6.205,1803.1,1802.9,5.54649]
[1743733395137,6.205,1803.1,1802.9,5.54647]
[1743733395453,6.34782,1803.4,1803.0,5.54631]
[1743733395639,6.204,1803.3,1803.1,5.546]
[1743733396197,6.204,1803.3,1803.0,11.09252]
[1743733396499,5.54572,1803.2,1802.9,6.33679]
[1743733396707,5.54572,1803.2,1802.9,6.3367]
[1743733396905,5.54572,1803.2,1802.9,7.525057]
[1743733397335,5.54572,1803.2,1802.8,5.54687]
[1743733397336,5.54572,1803.2,1802.8,5.54677]
[1743733397622,5.54611,1803.1,1802.8,5.54677]
[1743733397823,5.54663,1802.9,1802.6,5.54752]
[1743733399662,5.54663,1802.9,1802.5,0.7902]
[1743733399663,6.202,1802.9,1802.5,0.7902]
[1743733399872,11.09484,1802.7,1802.3,11.09671]
[1743733400162,11.85227,1802.8,1802.4,12.205821]
[1743733400348,5.54736,1802.7,1802.4,6.657671]
[1743733400532,5.54755,1802.6,1802.4,1.109671]
[1743733400732,5.54755,1802.6,1802.3,5.54844]
[1743733401245,5.54795,1802.5,1802.2,6.33894]
[1743733401417,6.202,1802.5,1802.2,6.3388]
[1743733401760,6.202,1802.5,1802.3,5.54845]
[1743733401955,6.202,1802.5,1802.2,6.3388]
[1743733402159,11.74987,1802.5,1802.2,6.97268]
[1743733402465,5.54827,1802.4,1802.0,6.33938]
[1743733402633,5.54862,1802.3,1801.9,11.09915]
[1743733402976,5.54935,1802.1,1801.8,0.799]
[1743733403257,6.201,1802.1,1801.7,5.55019]
[1743733403466,11.09923,1802.0,1801.6,6.34945]
[1743733403759,11.89483,1802.0,1801.6,7.539487]
[1743733403957,5.55015,1801.8,1801.4,5.55111]
[1743733404385,5.55015,1801.8,1801.5,5.55091]
[1743733404770,5.55039,1801.7,1801.3,6.3505]
[1743733405065,6.201,1801.7,1801.4,11.10214]
[1743733405264,6.201,1801.7,1801.4,6.741114]
[1743733405578,11.75143,1801.7,1801.4,6.741324]
[1743733405965,11.75143,1801.7,1801.3,6.35044]
[1743733406166,11.75143,1801.7,1801.3,5.55125]
[1743733406370,11.75143,1801.7,1801.4,5.55123]
[1743733406892,17.30192,1801.7,1801.3,5.55125]
[1743733407052,5.55073,1801.6,1801.2,5.5517]
[1743733407384,11.10154,1801.6,1801.3,0.20691743]
[1743733407889,5.55073,1801.6,1801.3,0.20691743]
[1743733408487,5.55094,1801.5,1801.3,0.20691743]
[1743733408697,6.34643,1801.6,1801.3,0.20691743]
[1743733409055,11.89725,1801.6,1801.3,0.20691743]
[1743733409598,6.34643,1801.6,1801.3,0.20691743]
[1743733409799,6.201,1801.7,1801.3,0.20691743]
[1743733409982,11.75132,1801.7,1801.4,5.55096]
[1743733410153,6.201,1801.7,1801.4,5.55096]
[1743733410352,11.75142,1801.7,1801.4,5.55122]
[1743733410581,6.201,1801.7,1801.4,11.10233]
[1743733410766,6.201,1801.7,1801.4,5.55111]
[1743733410967,8.5495,1802.0,1801.6,5.55042]
[1743733411168,6.201,1801.9,1801.6,5.55042]
[1743733412300,14.7495,1802.0,1801.7,5.55029]
[1743733414319,0.7957,1802.1,1801.7,6.660281]
[1743733414521,0.7957,1802.1,1801.5,6.34989]
[1743733414522,6.2,1802.0,1801.8,5.54971]
[1743733415513,6.34429,1802.3,1801.6,5.55056]
[1743733415818,6.199,1802.2,1802.0,5.54923]
[1743733416117,11.5582,1802.4,1802.1,5.54897]
[1743733416282,17.7572,1802.4,1802.1,5.54897]
[1743733416476,17.29553,1802.4,1802.1,5.54897]
[1743733416814,11.7472,1802.4,1802.1,5.54897]
[1743733417380,11.7472,1802.4,1801.9,5.54954]
[1743733417381,6.199,1802.4,1801.9,5.54954]
[1743733417622,6.199,1802.4,1802.1,5.54891]
[1743733417785,11.74732,1802.4,1802.1,5.54891]
[1743733417986,6.60978996,1802.4,1801.9,5.5496]
[1743733418219,5.54889,1802.2,1801.9,5.5496]
[1743733418514,5.54889,1802.2,1801.9,5.70502595]
[1743733419217,11.09788,1802.2,1801.9,0.15542595]
[1743733419442,0.759,1802.1,1801.9,0.15542595]
[1743733419748,0.759,1802.1,1802.0,0.12822297]
[1743733420648,6.30808,1802.1,1802.0,0.12822297]
[1743733421013,6.30808,1802.1,1801.7,11.10044]
[1743733421342,6.197,1802.0,1801.7,12.291344]
[1743733421540,6.197,1802.0,1801.8,11.22908464]
[1743733421739,6.197,1802.0,1801.8,0.12946464]
[1743733421943,11.74639,1802.0,1801.8,0.12946464]
[1743733422444,17.29602,1802.0,1801.6,11.10102]
[1743733422635,11.74639,1802.0,1801.9,0.12931912]
[1743733422836,11.74639,1802.0,1801.6,12.211122]
[1743733423036,11.74639,1802.0,1801.9,0.12931912]
[1743733423646,17.29596,1802.0,1801.6,6.660612]
[1743733423850,11.74639,1802.0,1801.9,0.12931912]
[1743733424049,17.29601,1802.0,1801.6,6.660612]
[1743733424216,11.74639,1802.0,1801.9,0.12931912]
[1743733424415,11.74639,1802.0,1801.6,12.211092]
[1743733424612,11.74639,1802.0,1801.9,0.12931912]
[1743733424811,6.197,1802.0,1801.7,11.10043]
[1743733425021,6.197,1802.0,1801.9,0.12931912]
[1743733425226,11.74639,1802.0,1801.8,0.12973084]
[1743733425571,11.74639,1802.0,1801.9,0.12931912]
[1743733425948,17.29597,1802.0,1801.6,11.10112]
[1743733426152,11.74639,1802.0,1801.9,0.12931912]
[1743733426451,11.74639,1802.0,1801.6,11.10112]
[1743733426644,11.74639,1802.0,1801.9,0.12931912]
[1743733426851,17.29601,1802.0,1801.6,12.211142]
[1743733427054,17.29601,1802.0,1801.9,0.12931912]
[1743733427358,6.30931,1801.7,1801.3,11.103]
[1743733427737,6.194,1801.6,1801.4,5.5512]
[1743733428257,6.194,1801.6,1801.4,5.55113]
[1743733428554,5.5494,1802.0,1801.6,5.55043]
[1743733428555,6.30876,1801.9,1801.6,5.55043]
[1743733428741,6.193,1801.9,1801.6,11.10088]
[1743733429046,6.193,1801.9,1801.6,11.10094]
[1743733429763,11.74271,1801.9,1801.6,5.55043]
[1743733429955,6.193,1801.9,1801.7,5.55012]
[1743733430639,6.193,1801.9,1801.7,11.10033]
[1743733431756,6.193,1801.9,1801.7,5.55012]
[1743733432475,6.193,1801.9,1801.5,5.55086]
[1743733432631,6.193,1801.9,1801.3,6.33312]
[1743733432632,5.55064,1801.6,1801.3,6.33312]
[1743733432830,5.55064,1801.6,1801.2,5.55183]
[1743733433031,5.55098,1801.5,1801.2,5.55183]
[1743733433243,6.192,1801.5,1801.2,5.55171]
[1743733433459,6.192,1801.5,1801.3,5.55152]
[1743733433663,6.192,1801.5,1801.2,5.55171]
[1743733433832,5.55124,1801.4,1801.1,5.60214]
[1743733434364,5.55158,1801.3,1801.1,0.05]
[1743733434563,5.55124,1801.4,1801.1,0.05]
[1743733434769,11.10267,1801.4,1801.1,0.05]
[1743733435071,5.55157,1801.3,1801.1,0.05]
[1743733435563,5.55185,1801.2,1801.1,0.05]
[1743733437281,12.49727,1801.5,1801.1,0.05]
[1743733437583,6.191,1801.4,1801.1,5.60203]
[1743733438095,6.191,1801.4,1801.1,11.15402]
[1743733438285,6.191,1801.4,1801.1,5.60199]
[1743733438286,11.74225,1801.4,1801.1,5.60199]
[1743733438588,6.191,1801.4,1801.1,5.60199]
[1743733438758,11.74226,1801.4,1801.1,6.7956]
[1743733438954,17.29378,1801.4,1801.1,1.24361]
[1743733439158,11.74226,1801.4,1801.1,0.05]
[1743733439364,11.74226,1801.4,1801.2,0.11514644]
[1743733439893,17.29369,1801.4,1801.2,0.11514644]
[1743733440196,11.74226,1801.4,1801.2,0.11514644]
[1743733440360,6.191,1801.4,1801.2,0.11514644]
[1743733440691,17.29383,1801.4,1801.2,0.11514644]
[1743733440891,5.55154,1801.3,1801.2,0.11514644]
[1743733441971,11.74238,1801.4,1801.2,0.11514644]
[1743733442591,11.74238,1801.4,1801.1,5.60195]
[1743733442992,11.74238,1801.4,1801.2,0.11470238]
[1743733443298,17.29377,1801.4,1801.2,0.11470238]
[1743733443470,11.74238,1801.4,1801.2,0.11470238]
[1743733444717,17.29379,1801.4,1801.2,0.11470238]
[1743733445028,11.035219,1801.3,1801.2,0.11470238]
[1743733445412,11.035219,1801.3,1801.1,0.05]
[1743733445413,9.30615,1801.2,1801.1,0.05]
[1743733445718,5.55354,1800.7,1800.3,11.89072]
[1743733445885,6.188,1800.6,1800.3,11.89072]
[1743733446324,6.188,1800.6,1800.1,0.8317]
[1743733446622,5.55445,1800.4,1800.1,0.05]
[1743733446833,6.30902,1800.3,1800.1,0.05]
[1743733446996,6.188,1800.2,1800.1,0.05]
[1743733447521,11.74293,1800.2,1800.1,0.05]
[1743733448019,6.188,1800.2,1800.1,0.05]
[1743733448231,6.88223,1800.2,1800.1,0.05]
[1743733448382,12.43716,1800.2,1800.1,0.05]
[1743733449008,6.88223,1800.2,1800.1,0.05]
[1743733449321,12.43716,1800.2,1800.1,0.05]
[1743733453595,13.19866,1800.2,1800.1,0.05]
[1743733456245,16.19866,1800.2,1800.1,0.05]
[1743733458049,22.20866,1800.2,1800.1,0.05]
[1743733460952,22.20866,1800.2,1799.1,0.8552]
[1743733460953,0.7615,1799.7,1799.1,0.8552]
[1743733461111,5.55781,1799.3,1799.1,0.8552]
[1743733461446,5.55781,1799.3,1798.6,0.8052]
[1743733461447,3.0,1799.1,1798.6,0.8052]
[1743733461650,5.55905,1798.9,1798.6,0.8052]
[1743733461824,6.185,1798.8,1798.6,1.01291697]
[1743733462236,6.185,1798.8,1798.6,6.57275697]
[1743733462751,6.185,1798.8,1798.7,5.55957]
[1743733462928,6.185,1798.8,1798.6,6.36497]
[1743733463248,6.185,1798.8,1798.6,12.13242697]
[1743733463611,6.185,1798.8,1798.6,6.57265697]
[1743733464046,6.185,1798.8,1798.6,6.57264697]
[1743733464261,6.185,1798.8,1798.6,12.13240697]
[1743733464635,6.185,1798.8,1798.6,6.57264697]
[1743733464942,6.185,1798.8,1798.7,5.55957]
[1743733467852,6.185,1798.8,1798.6,11.92466]
[1743733468042,6.185,1798.8,1798.7,5.55957]
[1743733468355,6.185,1798.8,1798.6,6.36491]
[1743733468655,6.185,1798.8,1798.6,6.57262697]
[1743733469153,7.359398,1798.8,1798.6,6.57262697]
[1743733470024,7.359398,1798.8,1798.6,12.13239697]
[1743733470252,6.185,1798.8,1798.6,12.13239697]
[1743733470550,6.185,1798.8,1798.7,5.55957]
[1743733471168,6.185,1798.8,1798.6,6.36491]
[1743733471324,6.185,1798.8,1798.6,0.8052]
[1743733471651,12.918849,1798.8,1798.6,1.01291697]
[1743733471862,12.918829,1798.8,1798.6,1.01291697]
[1743733472060,7.359419,1798.8,1798.6,1.01291697]
[1743733472225,7.359419,1798.8,1798.6,6.57261697]
[1743733472916,7.359419,1798.8,1798.6,1.01291697]
[1743733473341,12.918769,1798.8,1798.6,1.01291697]
[1743733474150,1.2918769,1798.7,1798.6,0.20771697]
[1743733474343,1.2918769,1798.7,1798.4,6.3151]
[1743733474564,1.2918769,1798.7,1798.5,0.20840569]
[1743733474771,11.74435,1798.8,1798.5,0.20840569]
[1743733475281,11.74435,1798.8,1798.5,0.15578773]
[1743733475584,6.185,1798.8,1798.5,5.71575773]
[1743733475779,6.185,1798.8,1798.5,11.32776697]
[1743733475986,11.74427,1798.8,1798.5,5.76768697]
[1743733476175,13.474598,1798.8,1798.5,5.68832538]
[1743733476480,13.474598,1798.8,1798.5,0.12835538]
[1743733476481,5.55987,1798.6,1798.5,0.12835538]
[1743733476684,5.5597,1798.7,1798.5,0.12835538]
[1743733478688,13.474658,1798.8,1798.5,0.12835538]
[1743733478850,19.034088,1798.8,1798.5,0.12835538]
[1743733479581,5.55957,1798.7,1798.5,0.12835538]
[1743733481488,5.55959,1798.7,1798.5,0.12835538]
[1743733484390,7.4630098,1798.7,1798.5,0.12835538]
[1743733484592,6.33407,1798.6,1798.5,0.12835538]
[1743733485089,11.89422,1798.6,1798.5,0.13348278]
[1743733485255,11.89422,1798.6,1798.2,11.93355]
[1743733485456,11.89422,1798.6,1798.5,0.13348278]
[1743733485707,5.56023,1798.5,1798.2,6.37249]
[1743733485897,19.76530495,1798.6,1798.5,0.13348278]
[1743733486057,5.56098,1798.3,1798.1,0.05]
[1743733486258,6.18,1798.2,1798.1,0.05]
[1743733487303,25.74087897,1798.2,1798.1,0.05]
[1743733495010,26.39161594,1798.2,1798.1,0.05]
[1743733495329,11.1259,1797.7,1797.4,0.8115]
[1743733495525,6.178,1797.6,1797.4,0.8115]
[1743733495704,11.74106,1797.6,1797.5,0.13125352]
[1743733496007,13.471461,1797.6,1797.5,0.13125352]
[1743733497114,7.908401,1797.6,1797.5,0.13125352]
[1743733497511,6.178,1797.6,1797.5,0.13125352]
[1743733499002,6.178,1797.6,1797.4,6.37505]
[1743733499428,6.178,1797.6,1797.5,0.13125352]
[1743733499602,6.178,1797.6,1797.5,5.69453352]
[1743733499798,6.178,1797.6,1797.5,0.13125352]
[1743733500220,6.178,1797.6,1797.5,5.69453352]
[1743733500417,6.178,1797.6,1797.5,0.13125352]
[1743733500995,12.95579873,1797.6,1797.5,0.13125352]
[1743733501236,5.56434,1797.2,1796.9,0.8274]
[1743733501398,6.177,1797.1,1796.9,6.39244]
[1743733501598,11.74159,1797.1,1796.9,0.8274]
[1743733501814,6.177,1797.1,1797.0,5.56483]
[1743733502017,6.177,1797.1,1797.0,6.39223]
[1743733502847,6.176,1797.2,1797.1,5.56438]
[1743733503139,6.176,1797.2,1797.0,0.8274]
[1743733503439,7.0936,1797.2,1797.0,6.39206]
[1743733503942,6.176,1797.2,1797.0,6.39206]
[1743733505357,11.74039,1797.2,1796.8,11.13078]
[1743733505563,6.58657219,1797.2,1796.8,0.8274]
[1743733505723,5.56466,1797.1,1796.8,6.39283]
[1743733506051,5.56466,1797.1,1796.9,5.5651]
[1743733506052,1.85108922,1797.1,1796.9,5.5651]
[1743733506439,1.85108922,1797.1,1796.8,6.39281]
[1743733506644,7.41563922,1797.1,1796.8,6.39281]
[1743733507162,12.98037922,1797.1,1796.8,0.8274]
[1743733507345,7.41563922,1797.1,1796.8,0.8274]
[1743733507548,0.74156392,1797.0,1796.8,0.8274]
[1743733507749,0.74156392,1797.0,1796.7,5.56561]
[1743733507922,11.87154392,1797.0,1796.6,11.9594]
[1743733508123,11.87154392,1797.0,1796.6,6.3934]
[1743733508320,0.74156392,1797.0,1796.7,5.56558]
[1743733508851,0.74156392,1797.0,1796.8,5.56544]
[1743733509053,0.74156392,1797.0,1796.7,11.1312]
[1743733509353,0.74156392,1797.0,1796.6,0.8274]
[1743733509354,11.87148392,1797.0,1796.6,6.39341]
[1743733509586,12.31771839,1796.9,1796.6,0.8274]
[1743733509732,6.174,1796.8,1796.6,1.0354788]
[1743733509933,6.174,1796.8,1796.6,0.68094526]
[1743733510370,11.73959,1796.8,1796.6,0.2080788]
[1743733510574,1.173959,1796.7,1796.6,0.2080788]
[1743733510771,1.173959,1796.7,1796.4,11.13313]
[1743733511068,1.173959,1796.7,1796.5,5.77513905]
[1743733511855,13.52770839,1796.9,1796.5,0.20876905]
[1743733511856,7.19714839,1796.9,1796.5,0.20876905]
[1743733512067,6.174,1796.8,1796.6,5.56587]
[1743733512278,6.174,1796.8,1796.5,5.56634]
[1743733512445,17.30512,1796.8,1796.6,0.2080788]
[1743733512641,1.730512,1796.7,1796.4,11.13324]
[1743733512849,7.296282,1796.7,1796.6,0.2080788]
[1743733513081,12.862272,1796.7,1796.3,5.56686]
[1743733513481,1.730512,1796.7,1796.5,5.56631]
[1743733513648,12.5049,1796.8,1796.5,5.56631]
[1743733513849,12.5049,1796.8,1796.6,0.2080788]
[1743733514094,6.9394,1796.8,1796.6,5.7740788]
[1743733514260,6.174,1796.7,1796.6,0.2080788]
[1743733515286,12.913704,1796.7,1796.6,0.12856828]
[1743733515486,7.347954,1796.7,1796.4,11.13313]
[1743733515690,12.913714,1796.7,1796.6,0.13228931]
[1743733515908,7.347954,1796.7,1796.5,5.56637]
[1743733516070,7.347954,1796.7,1796.6,0.13228931]
[1743733516269,13.679104,1796.7,1796.6,0.13228931]
[1743733516483,13.679104,1796.7,1796.4,5.56659]
[1743733516686,13.679104,1796.7,1796.6,0.13228931]
[1743733516884,5.56618,1796.6,1796.3,5.56697]
[1743733517197,6.123248,1796.5,1796.2,0.7854]
[1743733517493,6.123028,1796.5,1796.1,5.61753]
[1743733517693,6.123028,1796.5,1796.2,5.56729]
[1743733517992,0.556618,1796.5,1796.2,11.13446]
[1743733518163,6.122998,1796.5,1796.2,5.56717]
[1743733518563,0.556618,1796.5,1796.2,5.56717]
[1743733518895,6.123008,1796.5,1796.2,5.56717]
[1743733519192,6.1789908,1796.4,1796.1,5.61749]
[1743733519360,6.173,1796.3,1796.1,11.18499]
[1743733519583,6.173,1796.3,1796.1,5.61749]
[1743733520021,6.173,1796.3,1796.1,11.185]